Workbook

Sheet Tabel Energiebelasting
D2: (R)EB
D4: aardgas | E4: m3 | F4: 2004 | G4: 2005 | H4: 2006 | I4: 2007 | J4: 2008-01-01 | K4: 2008-07-01 | L4: 2009 | M4: 2010 | N4: 2011 | O4: 2012 | P4: 2013 | Q4: 2014 | R4: 2015 | S4: 2016 | T4: 2017
C5: van | D5: t/m | F5: €ct/m3 | G5: €ct/m3 | H5: €ct/m3 | I5: €ct/m3 | J5: €ct/m3 | K5: €ct/m3 | L5: €ct/m3 | M5: €ct/m3 | N5: €ct/m3 | O5: €ct/m3 | P5: €ct/m3 | Q5: €ct/m3 | R5: €ct/m3 | S5: €ct/m3 | T5: €ct/m3 | AA5: 0-5.000 | AB5: 5.001-170.000 | AC5: 170.001-1.000.000 | AD5: 1.000.001-10.000.000 | AE5: >10.000.000 niet zakelijk | AF5: >10.000.000 zakelijk
C6: 0 | D6: 5000 | F6: 14.29 | G6: 14.94 | H6: 15.27 | I6: 15.31 | J6: 15.54 | K6: 15.54 | L6: 15.8 | M6: 16.29 | N6: 16.39 | O6: 16.67 | P6: 18.62 | Q6: 18.94 | R6: 19.11 | S6: 25.168 | T6: 25.244 | Z6: 2004 | AA6: =F6 -> 14.29 | AB6: =F7 -> 7.27 | AC6: =F8 -> 2.27 | AD6: =F9 -> 1.13 | AE6: =F10 -> 1.06 | AF6: =F11 -> 0.75
C7: 5000 | D7: 170000 | F7: 7.27 | G7: 10.19 | H7: 12.29 | I7: 13.42 | J7: 13.62 | K7: 13.62 | L7: 13.85 | M7: 14.11 | N7: 14.19 | O7: 14.43 | P7: 18.62 | Q7: 18.94 | R7: 19.11 | S7: 25.168 | T7: 25.244 | Z7: 2005 | AA7: =G6 -> 14.94 | AB7: =G7 -> 10.19 | AC7: =G8 -> 3.11 | AD7: =G9 -> 1.15 | AE7: =G10 -> 1.07 | AF7: =G11 -> 0.76
C8: 170000 | D8: 1000000 | F8: 2.27 | G8: 3.11 | H8: 3.37 | I8: 3.72 | J8: 3.78 | K8: 3.78 | L8: 3.84 | M8: 3.91 | N8: 3.93 | O8: 4 | P8: 4.39 | Q8: 4.46 | R8: 6.77 | S8: 6.954 | T8: 6.215 | Z8: 2006 | AA8: =H6 -> 15.27 | AB8: =H7 -> 12.29 | AC8: =H8 -> 3.37 | AD8: =H9 -> 1.18 | AE8: =H10 -> 1.09 | AF8: =H11 -> 0.78
C9: 1000000 | D9: 10000000 | F9: 1.13 | G9: 1.15 | H9: 1.18 | I9: 1.18 | J9: 1.2 | K9: 1.2 | L9: 1.22 | M9: 1.24 | N9: 1.25 | O9: 1.27 | P9: 1.6 | Q9: 1.63 | R9: 2.47 | S9: 2.537 | T9: 2.265 | Z9: 2007 | AA9: =I6 -> 15.31 | AB9: =I7 -> 13.42 | AC9: =I8 -> 3.72 | AD9: =I9 -> 1.18 | AE9: =I10 -> 1.1 | AF9: =I11 -> 0.78
C10: >10.000.000 | D10: niet zakelijk | F10: 1.06 | G10: 1.07 | H10: 1.09 | I10: 1.1 | J10: 1.12 | K10: 1.12 | L10: 1.14 | M10: 1.16 | N10: 1.17 | O10: 1.19 | P10: 1.15 | Q10: 1.17 | R10: 1.18 | S10: 1.212 | T10: 1.216 | Z10: 2008 | AA10: =J6 -> 15.54 | AB10: =J7 -> 13.62 | AC10: =K8 -> 3.78 | AD10: =K9 -> 1.2 | AE10: =K10 -> 1.12 | AF10: =K11 -> 0.79
C11: >10.000.000 | D11: zakelijk | F11: 0.75 | G11: 0.76 | H11: 0.78 | I11: 0.78 | J11: 0.79 | K11: 0.79 | L11: 0.8 | M11: 0.82 | N11: 0.82 | O11: 0.83 | P11: 1.15 | Q11: 1.17 | R11: 1.18 | S11: 1.212 | T11: 1.216 | Z11: 2009 | AA11: =L6 -> 15.8 | AB11: =L7 -> 13.85 | AC11: =L8 -> 3.84 | AD11: =L9 -> 1.22 | AE11: =L10 -> 1.14 | AF11: =L11 -> 0.8
C12: T.b.v. CNG Vulstation = een rechtstreeks op het aardgasnet aangesloten inrichting waar uitsluitend aardgas wordt samengeperst tot CNG, dat wordt afgeleverd aan motorvoertuigen. | P12: 9.59 | Q12: 12.8 | R12: 12.8 | S12: 16.08 | T12: 16.128 | Z12: 2010 | AA12: =M6 -> 16.29 | AB12: =M7 -> 14.11 | AC12: =M8 -> 3.91 | AD12: =M9 -> 1.24 | AE12: =M10 -> 1.16 | AF12: =M11 -> 0.82
Z13: 2011 | AA13: =N6 -> 16.39 | AB13: =N7 -> 14.19 | AC13: =N8 -> 3.93 | AD13: =N9 -> 1.25 | AE13: =N10 -> 1.17 | AF13: =N11 -> 0.82
Z14: 2012 | AA14: =O6 -> 16.67 | AB14: =O7 -> 14.43 | AC14: =O8 -> 4 | AD14: =O9 -> 1.27 | AE14: =O10 -> 1.19 | AF14: =O11 -> 0.83
D15: Elektriciteit | E15: kWh | F15: 2004 | G15: 2005 | H15: 2006 | I15: 2007 | J15: 2008-01-01 | K15: 2008-07-01 | L15: 2009 | M15: 2010 | N15: 2011 | O15: 2012 | P15: 2013 | Q15: 2014 | R15: 2015 | S15: 2016 | T15: 2017 | Z15: 2013 | AA15: =P6+P29 -> 18.85 | AB15: =P7+P29 -> 18.85 | AC15: =P8+P30 -> 4.48 | AD15: =P9+P31 -> 1.63 | AE15: =P10+P32 -> 1.17 | AF15: =P11+P32 -> 1.17
C16: van | D16: t/m | F16: €ct/kWh | G16: €ct/kWh | H16: €ct/kWh | I16: €ct/kWh | J16: €ct/kWh | K16: €ct/kWh | L16: €ct/kWh | M16: €ct/kWh | N16: €ct/kWh | O16: €ct/kWh | P16: €ct/kWh | Q16: €ct/kWh | R16: €ct/kWh | S16: €ct/kWh | T16: €ct/kWh | Z16: 2014 | AA16: =Q6+Q29 -> 19.4 | AB16: =Q7+Q29 -> 19.4 | AC16: =Q8+Q30 -> 4.63 | AD16: =Q9+Q31 -> 1.68 | AE16: =Q10+Q32 -> 1.21 | AF16: =Q11+Q32 -> 1.21
C17: 0 | D17: 10000 | F17: 6.54 | G17: 6.99 | H17: 7.14 | I17: 7.16 | J17: 7.27 | K17: 7.52 | L17: 10.85 | M17: 11.14 | N17: 11.21 | O17: 11.4 | P17: 11.65 | Q17: 11.85 | R17: 11.96 | S17: 10.07 | T17: 10.13 | AA17: 0-10.000 | AB17: 10.001-50.000 | AC17: 50.001-10.000.000 | AD17: >10.000.000 niet zakelijk | AE17: >10.000.000 zakelijk
C18: 10000 | D18: 50000 | F18: 2.12 | G18: 2.63 | H18: 3.41 | I18: 3.69 | J18: 3.75 | K18: 3.75 | L18: 3.98 | M18: 4.06 | N18: 4.08 | O18: 4.15 | P18: 4.24 | Q18: 4.31 | R18: 4.69 | S18: 4.996 | T18: 4.901 | Z18: 2004 | AA18: 6.54 | AB18: 2.12 | AC18: 0.65 | AD18: 0.1 | AE18: 0.05
C19: 50000 | D19: 10000000 | F19: 0.65 | G19: 0.86 | H19: 0.93 | I19: 1.02 | J19: 1.04 | K19: 1.04 | L19: 1.06 | M19: 1.08 | N19: 1.09 | O19: 1.11 | P19: 1.13 | Q19: 1.15 | R19: 1.25 | S19: 1.331 | T19: 1.305 | Z19: 2005 | AA19: 6.99 | AB19: 2.63 | AC19: 0.86 | AD19: 0.1 | AE19: 0.05
C20: >10.000.000 | D20: niet zakelijk | F20: 0.1 | G20: 0.1 | H20: 0.1 | I20: 0.1 | J20: 0.1 | K20: 0.1 | L20: 0.1 | M20: 0.1 | N20: 0.1 | O20: 0.1 | P20: 0.1 | Q20: 0.1 | R20: 0.1 | S20: 0.107 | T20: 0.107 | Z20: 2006 | AA20: 7.14 | AB20: 3.41 | AC20: 0.93 | AD20: 0.1 | AE20: 0.05
C21: >10.000.000 | D21: zakelijk | F21: 0.05 | G21: 0.05 | H21: 0.05 | I21: 0.05 | J21: 0.05 | K21: 0.05 | L21: 0.05 | M21: 0.05 | N21: 0.05 | O21: 0.05 | P21: 0.05 | Q21: 0.05 | R21: 0.05 | S21: 0.053 | T21: 0.053 | Z21: 2007 | AA21: 7.16 | AB21: 3.69 | AC21: 1.02 | AD21: 0.1 | AE21: 0.05
C22: Belasting vermindering 2017 voor een elektriciteitsaansluiting met verblijfsvergunning (bijv. woonhuis) = € 308,54 (12 maanden) | Z22: 2008 | AA22: =(7.27+7.52)/2 -> 7.395 | AB22: 3.75 | AC22: 1.04 | AD22: 0.1 | AE22: 0.05
C23: Belasting vermindering voor een elektriciteitsaansluiting zonder verblijfsvergunning = € 0,00 (12 maanden) | Z23: 2009 | AA23: 10.85 | AB23: 3.98 | AC23: 1.06 | AD23: 0.1 | AE23: 0.05
Z24: 2010 | AA24: 11.14 | AB24: 4.06 | AC24: 1.08 | AD24: 0.1 | AE24: 0.05
D25: ODE (=Opslag Duurzame Energie) sinds 2013 | Z25: 2011 | AA25: 11.21 | AB25: 4.08 | AC25: 1.09 | AD25: 0.1 | AE25: 0.05
Z26: 2012 | AA26: 11.4 | AB26: 4.15 | AC26: 1.11 | AD26: 0.1 | AE26: 0.05
D27: aardgas | E27: m3 | F27: 2004 | G27: 2005 | H27: 2006 | I27: 2007 | J27: 2008-01-01 | K27: 2008-07-01 | L27: 2009 | M27: 2010 | N27: 2011 | O27: 2012 | P27: 2013 | Q27: 2014 | R27: 2015 | S27: 2016 | T27: 2017 | Z27: 2013 | AA27: =11.65+P37 -> 11.76 | AB27: =4.24+P38 -> 4.38 | AC27: =1.13+P39 -> 1.17 | AD27: =0.1+P40 -> 0.1017 | AE27: =0.05+P41 -> 0.0517
C28: van | D28: t/m | F28: €ct/m3 | G28: €ct/m3 | H28: €ct/m3 | I28: €ct/m3 | J28: €ct/m3 | K28: €ct/m3 | L28: €ct/m3 | M28: €ct/m3 | N28: €ct/m3 | O28: €ct/m3 | P28: €ct/m3 | Q28: €ct/m3 | R28: €ct/m3 | S28: €ct/m3 | T28: €ct/m3 | Z28: 2014 | AA28: =Q17+Q37 -> 12.08 | AB28: =Q18+Q38 -> 4.58 | AC28: =Q19+Q39 -> 1.22 | AD28: =Q20+Q40 -> 0.1034 | AE28: =Q21+Q41 -> 0.0534
C29: 0 | D29: 170000 | P29: 0.23 | Q29: 0.46 | R29: 0.74 | S29: 1.13 | T29: 1.59
C30: 170000 | D30: 1000000 | P30: 0.09 | Q30: 0.17 | R30: 0.28 | S30: 0.42 | T30: 0.74 | Z30: 2011 | AA30: 11.21 | AB30: 4.08 | AC30: 1.09 | AD30: 0.1 | AE30: 0.05
C31: 1000000 | D31: 10000000 | P31: 0.03 | Q31: 0.05 | R31: 0.08 | S31: 0.13 | T31: 0.27 | Z31: 2012 | AA31: 11.4 | AB31: 4.15 | AC31: 1.11 | AD31: 0.1 | AE31: 0.05
C32: >10.000.000 | P32: 0.02 | Q32: 0.04 | R32: 0.06 | S32: 0.09 | T32: 0.13
D35: Elektriciteit | E35: kWh | F35: 2004 | G35: 2005 | H35: 2006 | I35: 2007 | J35: 2008-01-01 | K35: 2008-07-01 | L35: 2009 | M35: 2010 | N35: 2011 | O35: 2012 | P35: 2013 | Q35: 2014 | R35: 2015 | S35: 2016 | T35: 2017
C36: van | D36: t/m | F36: €ct/kWh | G36: €ct/kWh | H36: €ct/kWh | I36: €ct/kWh | J36: €ct/kWh | K36: €ct/kWh | L36: €ct/kWh | M36: €ct/kWh | N36: €ct/kWh | O36: €ct/kWh | P36: €ct/kWh | Q36: €ct/kWh | R36: €ct/kWh | S36: €ct/kWh | T36: €ct/kWh
C37: 0 | D37: 10000 | P37: 0.11 | Q37: 0.23 | R37: 0.36 | S37: 0.56 | T37: 0.74
C38: 10000 | D38: 50000 | P38: 0.14 | Q38: 0.27 | R38: 0.46 | S38: 0.7 | T38: 1.23
C39: 50000 | D39: 10000000 | P39: 0.04 | Q39: 0.07 | R39: 0.12 | S39: 0.19 | T39: 0.33
C40: >10.000.000 | D40: niet zakelijk | P40: 0.0017 | Q40: 0.0034 | R40: 0.0055 | S40: 0.0084 | T40: 0.0131
C41: >10.000.000 | D41: zakelijk | P41: 0.0017 | Q41: 0.0034 | R41: 0.0055 | S41: 0.0084 | T41: 0.0131
C44: GAS TUINDERS 2017
C45: van | D45: t/m | E45: EB | F45: ODE | G45: Belasting totaal | H45: Verhoging t.o.v 2016
C46: m3 | D46: m3 | E46: €ct/m3 | F46: €ct/m3 | G46: €ct/m3 | H46: (%)
C47: 0 | D47: 170000 | E47: 4.054 | F47: 0.26 | G47: 4.314 | H47: 2.2
C48: 170001 | D48: 1000000 | E48: 2.346 | F48: 0.25 | G48: 2.596 | H48: 1.8
C49: 1000000 | D49: 10000000 | E49: 2.265 | F49: 0.27 | G49: 2.535 | H49: -3.5
C50: >10.000.000 | E50: 1.216 | F50: 0.13 | G50: 1.346 | H50: 3.3
C53: GAS BLOKVERWARMING 2017
C54: EB | D54: ODE | E54: Belasting totaal | F54: Verhoging t.o.v 2016
C55: €ct/m3 | D55: €ct/m3 | E55: €ct/m3 | F55: (%)
C56: 25.244 | D56: 1.59 | E56: =C56+D56 -> 26.834 | F56: 2

Sheet Blad1
